[Event "Titled Tuesday Blitz July 20 2021"]
[White "Nguyen Hong Nhung"]
[Black "Mohammad Fahad, Rahman"]
[WhiteFideId "12412201"]
[BlackFideId "10207791"]
[WhiteElo "1661"]
[BlackElo "2323"]
[Result "0-1"]
[Round "05"]
[TimeControl "180+1"]
[Date "2021.07.21"]
[WhiteClock "0:01:22"]
[BlackClock "0:01:33"]

1. e4 {[%clk 0:03:00]}  e5 {[%clk 0:02:58]} 2. Nf3 {[%clk 0:03:00]}  Nc6 {[%clk 0:02:59]} 3. d4 {[%clk 0:03:00]}  exd4 {[%clk 0:02:59]} 4. Nxd4 {[%clk 0:03:01]}  Nf6 {[%clk 0:02:59]} 5. Nc3 {[%clk 0:03:01]}  Bb4 {[%clk 0:02:47]} 6. Nxc6 {[%clk 0:03:01]}  bxc6 {[%clk 0:02:46]} 7. Bd3 {[%clk 0:03:01]}  O-O {[%clk 0:02:45]} 8. O-O {[%clk 0:03:01]}  d5 {[%clk 0:02:45]} 9. exd5 {[%clk 0:03:02]}  cxd5 {[%clk 0:02:45]} 10. h3 {[%clk 0:03:02]}  h6 {[%clk 0:02:38]} 11. Qf3 {[%clk 0:03:02]}  Be6 {[%clk 0:02:35]} 12. Ne2 {[%clk 0:03:02]}  c5 {[%clk 0:02:34]} 13. c3 {[%clk 0:02:59]}  Ba5 {[%clk 0:02:34]} 14. Bc2 {[%clk 0:02:52]}  d4 {[%clk 0:02:31]} 15. cxd4 {[%clk 0:02:37]}  cxd4 {[%clk 0:02:32]} 16. Rd1 {[%clk 0:02:35]}  Bb6 {[%clk 0:02:32]} 17. Qd3 {[%clk 0:02:23]}  Rc8 {[%clk 0:02:25]} 18. Bf4 {[%clk 0:02:18]}  Re8 {[%clk 0:02:17]} 19. Ba4 {[%clk 0:02:05]}  Bc4 {[%clk 0:02:16]} 20. Qf5 {[%clk 0:01:52]}  Rxe2 {[%clk 0:02:07]} 21. Be5 {[%clk 0:01:47]}  Rc5 {[%clk 0:01:40]} 22. f4 {[%clk 0:01:22]}  Qd5 {[%clk 0:01:33]} 0-1


[Site "https://www.chess.com"]

[Event "Titled Tuesday Blitz July 20 2021"]
[White "Nguyen, Quoc Hy"]
[Black "Pacheco Lugo, Alejandro Jose"]
[WhiteFideId "12410853"]
[BlackFideId "3903745"]
[WhiteElo "1975"]
[BlackElo "2125"]
[Result "0-1"]
[Round "05"]
[TimeControl "180+1"]
[Date "2021.07.21"]
[WhiteClock "0:00:02"]
[BlackClock "0:00:13"]

1. d4 {[%clk 0:03:00]}  Nf6 {[%clk 0:02:59]} 2. c4 {[%clk 0:03:00]}  e6 {[%clk 0:02:56]} 3. Nc3 {[%clk 0:02:55]}  Bb4 {[%clk 0:02:55]} 4. Qc2 {[%clk 0:02:51]}  b6 {[%clk 0:02:54]} 5. e4 {[%clk 0:02:51]}  c5 {[%clk 0:02:54]} 6. d5 {[%clk 0:02:50]}  Qe7 {[%clk 0:02:53]} 7. Ne2 {[%clk 0:02:46]}  d6 {[%clk 0:02:52]} 8. a3 {[%clk 0:02:38]}  Ba5 {[%clk 0:02:51]} 9. b4 {[%clk 0:02:35]}  cxb4 {[%clk 0:02:39]} 10. axb4 {[%clk 0:02:36]}  exd5 {[%clk 0:02:06]} 11. bxa5 {[%clk 0:02:19]}  dxe4 {[%clk 0:01:50]} 12. axb6 {[%clk 0:02:12]}  O-O {[%clk 0:01:50]} 13. Bg5 {[%clk 0:02:07]}  Nbd7 {[%clk 0:01:45]} 14. Nd5 {[%clk 0:00:56]}  Qe5 {[%clk 0:01:44]} 15. Bxf6 {[%clk 0:00:54]}  Nxf6 {[%clk 0:01:43]} 16. Qc3 {[%clk 0:00:54]}  Qg5 {[%clk 0:01:20]} 17. Nxf6+ {[%clk 0:00:48]}  gxf6 {[%clk 0:01:20]} 18. Rxa7 {[%clk 0:00:48]}  Rb8 {[%clk 0:01:02]} 19. Ra5 {[%clk 0:00:36]}  f5 {[%clk 0:00:51]} 20. Rb5 {[%clk 0:00:23]}  Ba6 {[%clk 0:00:47]} 21. Rb1 {[%clk 0:00:21]}  f4 {[%clk 0:00:40]} 22. g3 {[%clk 0:00:14]}  f3 {[%clk 0:00:33]} 23. Nf4 {[%clk 0:00:15]}  Rfc8 {[%clk 0:00:31]} 24. Nd5 {[%clk 0:00:12]}  Qxd5 {[%clk 0:00:30]} 25. cxd5 {[%clk 0:00:12]}  Rxc3 {[%clk 0:00:30]} 26. Bxa6 {[%clk 0:00:12]}  Ra3 {[%clk 0:00:26]} 27. Bb5 {[%clk 0:00:09]}  Rxb6 {[%clk 0:00:26]} 28. O-O {[%clk 0:00:09]}  Kg7 {[%clk 0:00:19]} 29. Bc6 {[%clk 0:00:09]}  Rba6 {[%clk 0:00:19]} 30. Rbe1 {[%clk 0:00:09]}  f5 {[%clk 0:00:18]} 31. h3 {[%clk 0:00:08]}  h5 {[%clk 0:00:18]} 32. g4 {[%clk 0:00:08]}  hxg4 {[%clk 0:00:18]} 33. hxg4 {[%clk 0:00:08]}  Kf6 {[%clk 0:00:19]} 34. Kh2 {[%clk 0:00:08]}  Ra7 {[%clk 0:00:15]} 35. Rh1 {[%clk 0:00:02]}  Rh7+ {[%clk 0:00:14]} 36. Kg1 {[%clk 0:00:02]}  Rg7 {[%clk 0:00:14]} 37. Rh6+ {[%clk 0:00:02]}  Ke5 {[%clk 0:00:13]} 38. Re6+ {[%clk 0:00:02]}  Kf4 {[%clk 0:00:13]} 39. Rxd6 {[%clk 0:00:02]}  Rxg4+ {[%clk 0:00:13]} 40. Kf1 {[%clk 0:00:03]}  Ra2 {[%clk 0:00:13]} 41. Rh6 {[%clk 0:00:02]}  Rg2 {[%clk 0:00:13]} 42. Rh4+ {[%clk 0:00:02]}  Kg5 {[%clk 0:00:13]} 43. Rh3 {[%clk 0:00:02]}  Raxf2# {[%clk 0:00:13]} 0-1


[Site "https://www.chess.com"]

[Event "Titled Tuesday Blitz July 20 2021"]
[White "Novikov, Evgenij"]
[Black "Golubenko, Valentina"]
[WhiteFideId "4125380"]
[BlackFideId "4501993"]
[WhiteElo "2242"]
[BlackElo "2164"]
[Result "0-1"]
[Round "05"]
[TimeControl "180+1"]
[Date "2021.07.21"]
[WhiteClock "0:00:14"]
[BlackClock "0:00:19"]

1. d4 {[%clk 0:03:00]}  g6 {[%clk 0:02:59]} 2. e4 {[%clk 0:03:00]}  Bg7 {[%clk 0:02:59]} 3. Nf3 {[%clk 0:03:00]}  d5 {[%clk 0:02:57]} 4. e5 {[%clk 0:02:59]}  c5 {[%clk 0:02:56]} 5. c3 {[%clk 0:02:58]}  cxd4 {[%clk 0:02:55]} 6. cxd4 {[%clk 0:02:58]}  Nc6 {[%clk 0:02:55]} 7. h3 {[%clk 0:02:57]}  e6 {[%clk 0:02:47]} 8. Nc3 {[%clk 0:02:53]}  Nge7 {[%clk 0:02:46]} 9. a3 {[%clk 0:02:35]}  O-O {[%clk 0:02:40]} 10. Bg5 {[%clk 0:02:25]}  a6 {[%clk 0:02:35]} 11. Be2 {[%clk 0:02:15]}  f6 {[%clk 0:02:22]} 12. exf6 {[%clk 0:02:13]}  Bxf6 {[%clk 0:02:22]} 13. Bxf6 {[%clk 0:02:12]}  Rxf6 {[%clk 0:02:22]} 14. O-O {[%clk 0:02:12]}  Nf5 {[%clk 0:02:18]} 15. Re1 {[%clk 0:02:07]}  Bd7 {[%clk 0:02:09]} 16. b4 {[%clk 0:02:00]}  Rf8 {[%clk 0:02:05]} 17. Na4 {[%clk 0:01:52]}  Ncxd4 {[%clk 0:01:48]} 18. Nxd4 {[%clk 0:01:53]}  Nxd4 {[%clk 0:01:47]} 19. Qxd4 {[%clk 0:01:53]}  Bxa4 {[%clk 0:01:47]} 20. Bg4 {[%clk 0:01:50]}  Qf6 {[%clk 0:01:22]} 21. Bxe6+ {[%clk 0:01:44]}  Kg7 {[%clk 0:01:21]} 22. Qxf6+ {[%clk 0:01:44]}  Rxf6 {[%clk 0:01:21]} 23. Bxd5 {[%clk 0:01:45]}  Raf8 {[%clk 0:01:17]} 24. Re7+ {[%clk 0:01:28]}  Kh6 {[%clk 0:01:16]} 25. Rc1 {[%clk 0:01:20]}  Rxf2 {[%clk 0:00:54]} 26. Rcc7 {[%clk 0:01:10]}  Kg5 {[%clk 0:00:42]} 27. Rxh7 {[%clk 0:01:04]}  Rd2 {[%clk 0:00:36]} 28. Bf3 {[%clk 0:00:51]}  Bc6 {[%clk 0:00:19]} 29. h4+ {[%clk 0:00:22]}  Kf4 {[%clk 0:00:19]} 30. Rhf7+ {[%clk 0:00:13]}  Rxf7 {[%clk 0:00:18]} 31. Rxf7+ {[%clk 0:00:14]}  Kg3 {[%clk 0:00:19]} 0-1


[Site "https://www.chess.com"]

[Event "Titled Tuesday Blitz July 20 2021"]
[White "Oliveira, Silvio Eduardo"]
[Black "Asadli, Vugar"]
[WhiteFideId "2111560"]
[BlackFideId "13405764"]
[WhiteElo "2302"]
[BlackElo "2386"]
[Result "0-1"]
[Round "05"]
[TimeControl "180+1"]
[Date "2021.07.20"]
[WhiteClock "0:00:04"]
[BlackClock "0:00:38"]

1. e4 {[%clk 0:02:42]}  c6 {[%clk 0:02:59]} 2. d4 {[%clk 0:02:42]}  d5 {[%clk 0:02:59]} 3. exd5 {[%clk 0:02:43]}  cxd5 {[%clk 0:03:00]} 4. Bd3 {[%clk 0:02:43]}  Nc6 {[%clk 0:02:59]} 5. c3 {[%clk 0:02:44]}  Qc7 {[%clk 0:02:59]} 6. Ne2 {[%clk 0:02:43]}  Bg4 {[%clk 0:02:55]} 7. O-O {[%clk 0:02:43]}  Nf6 {[%clk 0:02:49]} 8. Qe1 {[%clk 0:02:41]}  e6 {[%clk 0:02:35]} 9. Bg5 {[%clk 0:02:40]}  Bxe2 {[%clk 0:02:18]} 10. Qxe2 {[%clk 0:02:40]}  Bd6 {[%clk 0:02:18]} 11. g3 {[%clk 0:02:40]}  h6 {[%clk 0:02:09]} 12. Bc1 {[%clk 0:02:36]}  h5 {[%clk 0:02:09]} 13. Nd2 {[%clk 0:02:35]}  h4 {[%clk 0:02:08]} 14. Nf3 {[%clk 0:02:35]}  hxg3 {[%clk 0:02:01]} 15. hxg3 {[%clk 0:02:35]}  O-O-O {[%clk 0:02:00]} 16. Bg5 {[%clk 0:01:51]}  Rh5 {[%clk 0:01:53]} 17. Kg2 {[%clk 0:01:48]}  Rdh8 {[%clk 0:01:45]} 18. Rh1 {[%clk 0:01:47]}  Qd8 {[%clk 0:01:26]} 19. Rxh5 {[%clk 0:01:23]}  Rxh5 {[%clk 0:01:27]} 20. Ne5 {[%clk 0:01:07]}  Qh8 {[%clk 0:01:10]} 21. Bh4 {[%clk 0:00:22]}  Nxe5 {[%clk 0:01:03]} 22. dxe5 {[%clk 0:00:23]}  Bxe5 {[%clk 0:01:02]} 23. Qe3 {[%clk 0:00:17]}  Kb8 {[%clk 0:00:53]} 24. Rh1 {[%clk 0:00:14]}  Bc7 {[%clk 0:00:50]} 25. Be2 {[%clk 0:00:09]}  Rh7 {[%clk 0:00:44]} 26. Bf3 {[%clk 0:00:09]}  Nd7 {[%clk 0:00:39]} 27. Kg1 {[%clk 0:00:03]}  Ne5 {[%clk 0:00:39]} 28. Be2 {[%clk 0:00:04]}  f6 {[%clk 0:00:38]} 0-1


[Site "https://www.chess.com"]

[Event "Titled Tuesday Blitz July 20 2021"]
[White "Onyshchuk, Volodymyr"]
[Black "Trakru, Rohun"]
[WhiteFideId "14114038"]
[BlackFideId "2097613"]
[WhiteElo "2603"]
[BlackElo "1746"]
[Result "1-0"]
[Round "05"]
[TimeControl "180+1"]
[Date "2021.07.20"]
[WhiteClock "0:01:41"]
[BlackClock "0:00:06"]

1. Nf3 {[%clk 0:02:57]}  d5 {[%clk 0:02:59]} 2. g3 {[%clk 0:02:57]}  g6 {[%clk 0:02:59]} 3. Bg2 {[%clk 0:02:57]}  Bg7 {[%clk 0:02:59]} 4. O-O {[%clk 0:02:56]}  e5 {[%clk 0:02:58]} 5. c4 {[%clk 0:02:56]}  Ne7 {[%clk 0:02:20]} 6. cxd5 {[%clk 0:02:54]}  Nxd5 {[%clk 0:02:21]} 7. Nc3 {[%clk 0:02:53]}  Nxc3 {[%clk 0:02:15]} 8. bxc3 {[%clk 0:02:52]}  O-O {[%clk 0:02:15]} 9. d4 {[%clk 0:02:41]}  exd4 {[%clk 0:01:51]} 10. cxd4 {[%clk 0:02:40]}  c5 {[%clk 0:01:52]} 11. Bg5 {[%clk 0:02:35]}  Qd6 {[%clk 0:01:32]} 12. Bf4 {[%clk 0:02:23]}  Qe7 {[%clk 0:01:23]} 13. dxc5 {[%clk 0:02:21]}  Rd8 {[%clk 0:01:01]} 14. Bd6 {[%clk 0:02:19]}  Qf6 {[%clk 0:00:52]} 15. Qb3 {[%clk 0:02:10]}  Nc6 {[%clk 0:00:38]} 16. Rad1 {[%clk 0:02:09]}  Qc3 {[%clk 0:00:26]} 17. Qxc3 {[%clk 0:01:48]}  Bxc3 {[%clk 0:00:27]} 18. Ng5 {[%clk 0:01:48]}  Bd7 {[%clk 0:00:08]} 19. Bd5 {[%clk 0:01:41]}  Rf8 {[%clk 0:00:06]} 1-0


[Site "https://www.chess.com"]

[Event "Titled Tuesday Blitz July 20 2021"]
[White "Ozates, Tuna"]
[Black "Titichoca Daza, Daniel"]
[WhiteFideId "6354521"]
[BlackFideId "3309550"]
[WhiteElo "1872"]
[BlackElo "1910"]
[Result "0-1"]
[Round "05"]
[TimeControl "180+1"]
[Date "2021.07.21"]
[WhiteClock "0:01:37"]
[BlackClock "0:01:02"]

1. c4 {[%clk 0:03:00]}  c5 {[%clk 0:03:00]} 2. Nc3 {[%clk 0:03:00]}  Nc6 {[%clk 0:03:01]} 3. g3 {[%clk 0:03:00]}  g6 {[%clk 0:03:02]} 4. Bg2 {[%clk 0:03:01]}  Bg7 {[%clk 0:03:03]} 5. d3 {[%clk 0:03:01]}  d6 {[%clk 0:03:03]} 6. e4 {[%clk 0:03:01]}  e6 {[%clk 0:03:01]} 7. Nge2 {[%clk 0:03:01]}  Nge7 {[%clk 0:03:02]} 8. Be3 {[%clk 0:03:02]}  O-O {[%clk 0:03:03]} 9. Qd2 {[%clk 0:03:02]}  Nd4 {[%clk 0:02:57]} 10. Rc1 {[%clk 0:03:01]}  Rb8 {[%clk 0:02:40]} 11. Bh6 {[%clk 0:02:56]}  a6 {[%clk 0:02:31]} 12. h4 {[%clk 0:02:55]}  f6 {[%clk 0:02:28]} 13. Bxg7 {[%clk 0:02:52]}  Kxg7 {[%clk 0:02:29]} 14. h5 {[%clk 0:02:53]}  g5 {[%clk 0:02:28]} 15. f4 {[%clk 0:02:52]}  h6 {[%clk 0:02:27]} 16. Nxd4 {[%clk 0:02:52]}  cxd4 {[%clk 0:02:28]} 17. Ne2 {[%clk 0:02:53]}  e5 {[%clk 0:02:27]} 18. Bh3 {[%clk 0:02:45]}  b5 {[%clk 0:02:18]} 19. cxb5 {[%clk 0:02:43]}  axb5 {[%clk 0:02:12]} 20. Bxc8 {[%clk 0:02:42]}  Rxc8 {[%clk 0:02:13]} 21. Kf2 {[%clk 0:02:41]}  Qb6 {[%clk 0:02:07]} 22. Rxc8 {[%clk 0:02:38]}  Rxc8 {[%clk 0:02:06]} 23. Rc1 {[%clk 0:02:39]}  Rc5 {[%clk 0:02:06]} 24. b4 {[%clk 0:02:38]}  Rc6 {[%clk 0:02:05]} 25. fxg5 {[%clk 0:02:29]}  fxg5 {[%clk 0:01:57]} 26. g4 {[%clk 0:02:24]}  d5 {[%clk 0:01:27]} 27. Ng3 {[%clk 0:02:18]}  Rc3 {[%clk 0:01:27]} 28. exd5 {[%clk 0:02:13]}  Nxd5 {[%clk 0:01:22]} 29. Nf5+ {[%clk 0:02:13]}  Kh7 {[%clk 0:01:21]} 30. Re1 {[%clk 0:02:03]}  Qc6 {[%clk 0:01:08]} 31. Kg1 {[%clk 0:01:40]}  Rc2 {[%clk 0:01:02]} 32. Qd1 {[%clk 0:01:37]}  Nf4 {[%clk 0:01:02]} 0-1


[Site "https://www.chess.com"]

[Event "Titled Tuesday Blitz July 20 2021"]
[White "Pakleza, Zbigniew"]
[Black "Taichman, Ori"]
[WhiteFideId "1119290"]
[BlackFideId "2804069"]
[WhiteElo "2526"]
[BlackElo "2227"]
[Result "1-0"]
[Round "05"]
[TimeControl "180+1"]
[Date "2021.07.20"]
[WhiteClock "0:00:06"]
[BlackClock "0:00:06"]

1. d4 {[%clk 0:03:00]}  Nf6 {[%clk 0:02:59]} 2. Nf3 {[%clk 0:03:00]}  g6 {[%clk 0:02:59]} 3. Bf4 {[%clk 0:03:00]}  Bg7 {[%clk 0:02:59]} 4. e3 {[%clk 0:03:00]}  O-O {[%clk 0:02:59]} 5. Be2 {[%clk 0:03:00]}  d6 {[%clk 0:02:59]} 6. h3 {[%clk 0:03:00]}  Nc6 {[%clk 0:02:59]} 7. O-O {[%clk 0:02:54]}  Nd7 {[%clk 0:02:56]} 8. Bh2 {[%clk 0:02:55]}  e5 {[%clk 0:02:56]} 9. c3 {[%clk 0:02:55]}  f5 {[%clk 0:02:56]} 10. b4 {[%clk 0:02:55]}  e4 {[%clk 0:02:45]} 11. Nfd2 {[%clk 0:02:54]}  Nf6 {[%clk 0:02:40]} 12. b5 {[%clk 0:02:47]}  Ne7 {[%clk 0:02:40]} 13. c4 {[%clk 0:02:48]}  Be6 {[%clk 0:02:38]} 14. Nc3 {[%clk 0:02:48]}  g5 {[%clk 0:02:28]} 15. a4 {[%clk 0:02:45]}  Ng6 {[%clk 0:01:46]} 16. Re1 {[%clk 0:02:39]}  Qd7 {[%clk 0:01:40]} 17. a5 {[%clk 0:02:36]}  Rae8 {[%clk 0:01:24]} 18. b6 {[%clk 0:02:26]}  f4 {[%clk 0:00:56]} 19. bxc7 {[%clk 0:01:41]}  fxe3 {[%clk 0:00:45]} 20. fxe3 {[%clk 0:01:42]}  Bxh3 {[%clk 0:00:45]} 21. gxh3 {[%clk 0:01:23]}  Qxh3 {[%clk 0:00:46]} 22. Bf1 {[%clk 0:01:22]}  Qh4 {[%clk 0:00:45]} 23. Qe2 {[%clk 0:01:04]}  Ng4 {[%clk 0:00:40]} 24. Ndxe4 {[%clk 0:00:58]}  Rxe4 {[%clk 0:00:12]} 25. Nxe4 {[%clk 0:00:47]}  Nxh2 {[%clk 0:00:11]} 26. Qxh2 {[%clk 0:00:48]}  Qxe4 {[%clk 0:00:10]} 27. Qg2 {[%clk 0:00:25]}  Qe7 {[%clk 0:00:08]} 28. Qxb7 {[%clk 0:00:23]}  Qd7 {[%clk 0:00:05]} 29. c8=Q {[%clk 0:00:17]}  Qxc8 {[%clk 0:00:05]} 30. Qxc8 {[%clk 0:00:17]}  Rxc8 {[%clk 0:00:06]} 31. Rab1 {[%clk 0:00:15]}  Nh4 {[%clk 0:00:06]} 32. Bg2 {[%clk 0:00:11]}  g4 {[%clk 0:00:06]} 33. Bd5+ {[%clk 0:00:10]}  Kh8 {[%clk 0:00:06]} 34. Rb7 {[%clk 0:00:11]}  h5 {[%clk 0:00:06]} 35. Rf1 {[%clk 0:00:11]}  Bh6 {[%clk 0:00:06]} 36. Rff7 {[%clk 0:00:07]}  Bxe3+ {[%clk 0:00:06]} 37. Kf1 {[%clk 0:00:07]}  Kg8 {[%clk 0:00:06]} 38. Rh7+ {[%clk 0:00:06]} 1-0


[Site "https://www.chess.com"]

[Event "Titled Tuesday Blitz July 20 2021"]
[White "Plotnikov, Pavel"]
[Black "Nazaretyan, Tigran"]
[WhiteFideId "4170342"]
[BlackFideId "24162345"]
[WhiteElo "2298"]
[BlackElo "2214"]
[Result "1-0"]
[Round "05"]
[TimeControl "180+1"]
[Date "2021.07.21"]
[WhiteClock "0:01:07"]
[BlackClock "0:00:08"]

1. e4 {[%clk 0:03:00]}  c5 {[%clk 0:00:34]} 2. Nf3 {[%clk 0:02:58]}  Nc6 {[%clk 0:00:34]} 3. g3 {[%clk 0:02:58]}  g5 {[%clk 0:00:34]} 4. Nxg5 {[%clk 0:02:55]}  Bg7 {[%clk 0:00:34]} 5. Nf3 {[%clk 0:02:54]}  d6 {[%clk 0:00:34]} 6. Bg2 {[%clk 0:02:54]}  h5 {[%clk 0:00:34]} 7. h4 {[%clk 0:02:50]}  Bg4 {[%clk 0:00:34]} 8. d3 {[%clk 0:02:50]}  e6 {[%clk 0:00:30]} 9. Bg5 {[%clk 0:02:50]}  Nge7 {[%clk 0:00:29]} 10. Nbd2 {[%clk 0:02:49]}  Qb6 {[%clk 0:00:21]} 11. Nc4 {[%clk 0:02:48]}  Qc7 {[%clk 0:00:21]} 12. Ne3 {[%clk 0:02:48]}  Bxb2 {[%clk 0:00:18]} 13. Rb1 {[%clk 0:02:36]}  Bc3+ {[%clk 0:00:18]} 14. Kf1 {[%clk 0:02:37]}  Bxf3 {[%clk 0:00:16]} 15. Qxf3 {[%clk 0:02:34]}  Ng6 {[%clk 0:00:16]} 16. Nc4 {[%clk 0:02:25]}  Bg7 {[%clk 0:00:15]} 17. Bf6 {[%clk 0:02:21]}  Nd4 {[%clk 0:00:14]} 18. Bxd4 {[%clk 0:02:18]}  Bxd4 {[%clk 0:00:15]} 19. e5 {[%clk 0:02:16]}  d5 {[%clk 0:00:15]} 20. Nd6+ {[%clk 0:02:15]}  Kf8 {[%clk 0:00:15]} 21. Rxb7 {[%clk 0:02:14]}  Nxe5 {[%clk 0:00:12]} 22. Rxc7 {[%clk 0:02:12]}  Nxf3 {[%clk 0:00:12]} 23. Rxf7+ {[%clk 0:02:12]}  Kg8 {[%clk 0:00:12]} 24. Rxf3 {[%clk 0:02:10]}  Rb8 {[%clk 0:00:10]} 25. Ke2 {[%clk 0:02:04]}  Rb2 {[%clk 0:00:10]} 26. Kd2 {[%clk 0:02:02]}  Rxa2 {[%clk 0:00:10]} 27. Rb1 {[%clk 0:01:59]}  Rb2 {[%clk 0:00:10]} 28. Rxb2 {[%clk 0:01:56]}  Bxb2 {[%clk 0:00:11]} 29. Rf7 {[%clk 0:01:55]}  Rh7 {[%clk 0:00:11]} 30. Rxh7 {[%clk 0:01:55]}  Kxh7 {[%clk 0:00:11]} 31. Bh3 {[%clk 0:01:55]}  e5 {[%clk 0:00:09]} 32. Be6 {[%clk 0:01:55]}  d4 {[%clk 0:00:10]} 33. Nc4 {[%clk 0:01:54]}  Bc3+ {[%clk 0:00:10]} 34. Kc1 {[%clk 0:01:54]}  a5 {[%clk 0:00:11]} 35. Kb1 {[%clk 0:01:54]}  Kg6 {[%clk 0:00:11]} 36. Ka2 {[%clk 0:01:54]}  Kf6 {[%clk 0:00:11]} 37. Bd5 {[%clk 0:01:50]}  Kf5 {[%clk 0:00:11]} 38. Bf3 {[%clk 0:01:50]}  Kg6 {[%clk 0:00:11]} 39. Kb3 {[%clk 0:01:50]}  Be1 {[%clk 0:00:11]} 40. Nxe5+ {[%clk 0:01:47]}  Kh6 {[%clk 0:00:10]} 41. Be2 {[%clk 0:01:34]}  Bxf2 {[%clk 0:00:10]} 42. g4 {[%clk 0:01:35]}  Bxh4 {[%clk 0:00:10]} 43. gxh5 {[%clk 0:01:35]}  Be1 {[%clk 0:00:09]} 44. Nd7 {[%clk 0:01:33]}  Bb4 {[%clk 0:00:09]} 45. Ka4 {[%clk 0:01:31]}  Kg5 {[%clk 0:00:09]} 46. Nb6 {[%clk 0:01:29]}  Kh6 {[%clk 0:00:08]} 47. Nc4 {[%clk 0:01:29]}  Kg5 {[%clk 0:00:08]} 48. Nxa5 {[%clk 0:01:29]}  Be1 {[%clk 0:00:08]} 49. Nb3 {[%clk 0:01:28]}  Bb4 {[%clk 0:00:08]} 50. Kb5 {[%clk 0:01:28]}  Kf4 {[%clk 0:00:08]} 51. h6 {[%clk 0:01:27]}  Ke3 {[%clk 0:00:08]} 52. h7 {[%clk 0:01:27]}  Kxe2 {[%clk 0:00:09]} 53. h8=Q {[%clk 0:01:27]}  Kd1 {[%clk 0:00:10]} 54. Qh1+ {[%clk 0:01:22]}  Kxc2 {[%clk 0:00:10]} 55. Kc4 {[%clk 0:01:21]}  Bc3 {[%clk 0:00:10]} 56. Qg2+ {[%clk 0:01:19]}  Kb1 {[%clk 0:00:09]} 57. Qf1+ {[%clk 0:01:19]}  Ka2 {[%clk 0:00:09]} 58. Nxc5 {[%clk 0:01:11]}  Ka3 {[%clk 0:00:09]} 59. Qd1 {[%clk 0:01:10]}  Kb2 {[%clk 0:00:09]} 60. Ne6 {[%clk 0:01:07]}  Ka3 {[%clk 0:00:08]} 61. Qb3# {[%clk 0:01:07]} 1-0


[Site "https://www.chess.com"]

[Event "Titled Tuesday Blitz July 20 2021"]
[White "Prraneeth Vuppala"]
[Black "Wilson, Elvin"]
[WhiteFideId "46622373"]
[BlackFideId "2014874"]
[WhiteElo "1759"]
[BlackElo "2333"]
[Result "1-0"]
[Round "05"]
[TimeControl "180+1"]
[Date "2021.07.21"]
[WhiteClock "0:00:11"]
[BlackClock "0:00:19"]

1. e4 {[%clk 0:03:00]}  e6 {[%clk 0:02:57]} 2. d4 {[%clk 0:03:00]}  d5 {[%clk 0:02:57]} 3. Nd2 {[%clk 0:03:00]}  c5 {[%clk 0:02:56]} 4. Ngf3 {[%clk 0:03:00]}  cxd4 {[%clk 0:02:55]} 5. Nxd4 {[%clk 0:02:59]}  Nc6 {[%clk 0:02:55]} 6. Bb5 {[%clk 0:02:59]}  Bd7 {[%clk 0:02:54]} 7. Nxc6 {[%clk 0:02:42]}  bxc6 {[%clk 0:02:54]} 8. Bd3 {[%clk 0:02:42]}  Qc7 {[%clk 0:02:54]} 9. c4 {[%clk 0:02:31]}  Nf6 {[%clk 0:02:49]} 10. Qe2 {[%clk 0:02:29]}  Bd6 {[%clk 0:02:48]} 11. Nf3 {[%clk 0:01:54]}  dxe4 {[%clk 0:02:42]} 12. Bxe4 {[%clk 0:01:54]}  Nxe4 {[%clk 0:02:41]} 13. Qxe4 {[%clk 0:01:54]}  O-O {[%clk 0:02:37]} 14. O-O {[%clk 0:01:53]}  f5 {[%clk 0:02:34]} 15. Qe2 {[%clk 0:01:48]}  e5 {[%clk 0:02:34]} 16. c5 {[%clk 0:01:45]}  Bxc5 {[%clk 0:02:30]} 17. Qc4+ {[%clk 0:01:43]}  Rf7 {[%clk 0:02:23]} 18. Qxc5 {[%clk 0:01:43]}  e4 {[%clk 0:02:23]} 19. Ng5 {[%clk 0:01:33]}  Rf6 {[%clk 0:02:05]} 20. Qc4+ {[%clk 0:01:32]}  Kh8 {[%clk 0:02:02]} 21. Nf7+ {[%clk 0:01:32]}  Kg8 {[%clk 0:02:02]} 22. Ne5+ {[%clk 0:01:19]}  Kh8 {[%clk 0:01:52]} 23. Bf4 {[%clk 0:01:17]}  Be6 {[%clk 0:01:44]} 24. Qxe6 {[%clk 0:01:03]}  Rxe6 {[%clk 0:01:40]} 25. Ng6+ {[%clk 0:01:03]}  hxg6 {[%clk 0:01:30]} 26. Bxc7 {[%clk 0:01:03]}  Rc8 {[%clk 0:01:28]} 27. Ba5 {[%clk 0:01:02]}  f4 {[%clk 0:01:24]} 28. Bc3 {[%clk 0:01:01]}  g5 {[%clk 0:01:24]} 29. Rad1 {[%clk 0:01:00]}  Rce8 {[%clk 0:01:22]} 30. Rd7 {[%clk 0:00:58]}  R8e7 {[%clk 0:01:23]} 31. Rxe7 {[%clk 0:00:58]}  Rxe7 {[%clk 0:01:23]} 32. Rd1 {[%clk 0:00:57]}  Kh7 {[%clk 0:01:22]} 33. Kf1 {[%clk 0:00:54]}  g4 {[%clk 0:01:13]} 34. Rd6 {[%clk 0:00:51]}  f3 {[%clk 0:01:07]} 35. Rxc6 {[%clk 0:00:36]}  Rd7 {[%clk 0:01:00]} 36. gxf3 {[%clk 0:00:36]}  exf3 {[%clk 0:00:52]} 37. Rc4 {[%clk 0:00:35]}  Rd1+ {[%clk 0:00:45]} 38. Be1 {[%clk 0:00:35]}  Ra1 {[%clk 0:00:42]} 39. a3 {[%clk 0:00:26]}  Ra2 {[%clk 0:00:39]} 40. Rxg4 {[%clk 0:00:23]}  Rxb2 {[%clk 0:00:39]} 41. Ra4 {[%clk 0:00:22]}  Rb1 {[%clk 0:00:32]} 42. Rxa7 {[%clk 0:00:20]}  Kh6 {[%clk 0:00:32]} 43. Rf7 {[%clk 0:00:19]}  Rb3 {[%clk 0:00:31]} 44. a4 {[%clk 0:00:18]}  g5 {[%clk 0:00:31]} 45. a5 {[%clk 0:00:17]}  Ra3 {[%clk 0:00:30]} 46. Re7 {[%clk 0:00:17]}  g4 {[%clk 0:00:29]} 47. Re3 {[%clk 0:00:17]}  Ra1 {[%clk 0:00:28]} 48. h3 {[%clk 0:00:16]}  Kh5 {[%clk 0:00:27]} 49. hxg4+ {[%clk 0:00:16]}  Kxg4 {[%clk 0:00:27]} 50. Re4+ {[%clk 0:00:16]}  Kf5 {[%clk 0:00:27]} 51. Re3 {[%clk 0:00:14]}  Kf4 {[%clk 0:00:27]} 52. Re6 {[%clk 0:00:14]}  Kg4 {[%clk 0:00:26]} 53. a6 {[%clk 0:00:13]}  Kf4 {[%clk 0:00:26]} 54. Re7 {[%clk 0:00:13]}  Rxa6 {[%clk 0:00:24]} 55. Bd2+ {[%clk 0:00:12]}  Kg4 {[%clk 0:00:24]} 56. Rg7+ {[%clk 0:00:12]}  Kf5 {[%clk 0:00:24]} 57. Rf7+ {[%clk 0:00:11]}  Ke4 {[%clk 0:00:24]} 58. Kg1 {[%clk 0:00:09]}  Rg6+ {[%clk 0:00:22]} 59. Kf1 {[%clk 0:00:07]}  Rd6 {[%clk 0:00:21]} 60. Re7+ {[%clk 0:00:06]}  Kf5 {[%clk 0:00:20]} 61. Be1 {[%clk 0:00:06]}  Rd1 {[%clk 0:00:19]} 62. Rf7+ {[%clk 0:00:05]}  Kg4 {[%clk 0:00:19]} 63. Re7 {[%clk 0:00:05]}  Kf4 {[%clk 0:00:20]} 64. Re3 {[%clk 0:00:05]}  Rb1 {[%clk 0:00:19]} 65. Kg1 {[%clk 0:00:05]}  Rc1 {[%clk 0:00:19]} 66. Kh2 {[%clk 0:00:05]}  Rc6 {[%clk 0:00:19]} 67. Bd2 {[%clk 0:00:05]}  Rh6+ {[%clk 0:00:19]} 68. Kg1 {[%clk 0:00:05]}  Rg6+ {[%clk 0:00:19]} 69. Kf1 {[%clk 0:00:06]}  Rh6 {[%clk 0:00:19]} 70. Rd3+ {[%clk 0:00:06]}  Ke4 {[%clk 0:00:19]} 71. Bxh6 {[%clk 0:00:06]}  Kxd3 {[%clk 0:00:18]} 72. Be3 {[%clk 0:00:06]}  Ke4 {[%clk 0:00:18]} 73. Kg1 {[%clk 0:00:06]}  Kf5 {[%clk 0:00:18]} 74. Kh2 {[%clk 0:00:07]}  Kg4 {[%clk 0:00:19]} 75. Bd4 {[%clk 0:00:08]}  Kh4 {[%clk 0:00:19]} 76. Bf6+ {[%clk 0:00:08]}  Kg4 {[%clk 0:00:19]} 77. Bd8 {[%clk 0:00:09]}  Kf4 {[%clk 0:00:19]} 78. Kh3 {[%clk 0:00:10]}  Ke4 {[%clk 0:00:19]} 79. Kg3 {[%clk 0:00:10]}  Kd3 {[%clk 0:00:19]} 80. Kxf3 {[%clk 0:00:11]} 1-0


[Site "https://www.chess.com"]